bitfinex/quotes_BTCUSD_20251226
["timestamp","ask_amount","ask_price","bid_price","bid_amount"]
[1766757767428,0.01124201,88952.0,88949.0,0.01128]
[1766757768462,0.01124189,88953.0,88949.0,0.01128]
[1766757768646,0.01124201,88952.0,88949.0,0.01128]
[1766757771808,0.0674525,88952.0,88949.0,0.01128]
[1766757772502,0.05621121,88951.0,88949.0,0.01128]
[1766757773014,0.0562132,88948.0,88940.0,0.33876]
[1766757773153,0.01124265,88947.0,88941.0,0.01128]
[1766757774278,0.01124252,88948.0,88941.0,0.01128]
[1766757775306,0.01124239,88949.0,88941.0,0.01128]
[1766757775487,0.05621135,88951.0,88941.0,0.01128]
[1766757775488,0.01124227,88950.0,88941.0,0.01128]
[1766757776306,0.01124227,88950.0,88941.0,0.0225234]
[1766757776772,0.01124239,88949.0,88941.0,0.01128]
[1766757776967,0.01124227,88950.0,88941.0,0.0225234]
[1766757777979,0.01124239,88949.0,88941.0,0.0225234]
[1766757778368,0.01124239,88949.0,88937.0,0.01124391]
[1766757778369,0.01124315,88943.0,88923.0,0.23615845]
[1766757778668,0.01124315,88943.0,88925.0,0.01124543]
[1766757778669,0.01124416,88935.0,88925.0,0.01124543]
[1766757778866,0.01124404,88936.0,88926.0,0.0112453]
[1766757779072,0.01124391,88937.0,88927.0,0.01124517]
[1766757779305,0.01124391,88937.0,88926.0,0.0112453]
[1766757779487,0.01124391,88937.0,88928.0,0.01124505]
[1766757780387,0.01124378,88938.0,88929.0,0.01124492]
[1766757781083,0.22486564,88943.0,88928.0,0.01124505]
[1766757781084,0.01124252,88948.0,88938.0,0.001099]
[1766757781297,0.01124214,88951.0,88939.0,0.02252366]
[1766757781495,0.01124201,88952.0,88939.0,0.02252366]
[1766757781496,0.01124201,88952.0,88943.0,0.01124315]
[1766757781703,0.01124176,88954.0,88944.0,0.01124302]
[1766757782103,0.01124189,88953.0,88943.0,0.01124315]
[1766757782307,0.01124189,88953.0,88944.0,0.00057515]
[1766757782515,0.01124189,88953.0,88944.0,0.01181817]
[1766757782697,0.01124189,88953.0,88943.0,0.01124315]
[1766757782698,0.01124201,88952.0,88943.0,0.01124315]
[1766757782897,0.01124201,88952.0,88944.0,0.00057515]
[1766757783099,0.01124189,88953.0,88943.0,0.01124315]
[1766757783315,0.01124201,88952.0,88943.0,0.01124315]
[1766757783534,0.01124189,88953.0,88943.0,0.01124315]
[1766757783696,0.01124201,88952.0,88943.0,0.01124315]
[1766757783900,0.01124201,88952.0,88942.0,0.01124328]
[1766757784158,0.01124214,88951.0,88942.0,0.01124328]
[1766757784375,0.01124189,88953.0,88943.0,0.01124315]
[1766757784658,0.01124189,88953.0,88944.0,0.01181817]
[1766757784797,0.01124189,88953.0,88944.0,0.00057515]
[1766757784997,0.01124189,88953.0,88944.0,0.01181817]
[1766757785224,0.01124189,88953.0,88944.0,0.01124302]
[1766757785814,0.01124201,88952.0,88943.0,0.01124315]
[1766757786222,0.01124214,88951.0,88942.0,0.01124328]
[1766757786624,0.01124214,88951.0,88941.0,0.06746005]
[1766757786625,0.01124227,88950.0,88941.0,0.06746005]
[1766757786841,0.01124214,88951.0,88942.0,0.01124328]
[1766757787047,0.01124214,88951.0,88941.0,0.06746005]
[1766757787048,0.01124227,88950.0,88941.0,0.06746005]
[1766757787227,0.01124252,88948.0,88939.0,0.02252366]
[1766757787424,0.01124252,88948.0,88939.0,0.01128]
[1766757787623,0.01124265,88947.0,88939.0,0.01128]
[1766757788147,0.01124277,88946.0,88939.0,0.01128]
[1766757788552,0.0112429,88945.0,88939.0,0.01128]
[1766757788765,0.01124328,88942.0,88939.0,0.01128]
[1766757789587,0.01124315,88943.0,88939.0,0.01128]
[1766757789988,0.01124302,88944.0,88939.0,0.01128]
[1766757790189,0.01124315,88943.0,88939.0,0.01128]
[1766757790810,0.01124302,88944.0,88939.0,0.01128]
[1766757791642,0.01124315,88943.0,88940.0,0.01128]
[1766757792746,0.01124302,88944.0,88940.0,0.01128]
[1766757793846,0.01124252,88948.0,88940.0,0.01128]
[1766757794068,0.0112429,88945.0,88940.0,0.01128]
[1766757794410,0.01124302,88944.0,88940.0,0.01128]
[1766757794612,0.01124315,88943.0,88940.0,0.01128]
[1766757795227,0.06745954,88943.0,88940.0,0.01128]
[1766757796166,0.01124353,88940.0,88931.0,0.01124467]
[1766757796378,0.01124378,88938.0,88932.0,0.01128]
[1766757797164,0.01124391,88937.0,88932.0,0.01128]
[1766757797361,0.01124378,88938.0,88932.0,0.01128]
[1766757797545,0.01124391,88937.0,88932.0,0.01128]
[1766757797768,0.01124391,88937.0,88926.0,0.0112453]
[1766757797769,0.01124404,88936.0,88926.0,0.0112453]
[1766757797961,0.01124391,88937.0,88927.0,0.06750543]
[1766757798146,0.01124378,88938.0,88929.0,0.01124492]
[1766757798728,0.05621782,88940.0,88930.0,0.01124479]
[1766757798729,0.01124366,88939.0,88930.0,0.01124479]
[1766757798918,0.01124404,88936.0,88931.0,0.01128]
[1766757799137,0.01124391,88937.0,88931.0,0.01128]
[1766757799315,0.01124366,88939.0,88931.0,0.01128]
[1766757799490,0.01124378,88938.0,88931.0,0.01128]
[1766757799669,0.01124366,88939.0,88931.0,0.01128]
[1766757799868,0.01124353,88940.0,88931.0,0.02252467]
[1766757800692,0.01124328,88942.0,88940.0,0.000549]
[1766757801418,0.0112434,88941.0,88933.0,0.01124441]
[1766757802420,0.01124315,88943.0,88934.0,0.01124429]
[1766757802621,0.01124328,88942.0,88931.0,0.01128]
[1766757802827,0.01124366,88939.0,88931.0,0.02252467]
[1766757803120,0.0112434,88941.0,88932.0,0.01124454]
[1766757803511,0.01124366,88939.0,88931.0,0.01128]
[1766757803905,0.01124353,88940.0,88931.0,0.01128]
[1766757804108,0.01124366,88939.0,88931.0,0.01128]
[1766757804509,0.01124378,88938.0,88931.0,0.01128]
[1766757804737,0.01124391,88937.0,88931.0,0.01128]
[1766757805128,0.01124378,88938.0,88929.0,0.01124492]
[1766757805351,0.01124378,88938.0,88932.0,0.01128]
[1766757805548,0.01124391,88937.0,88932.0,0.01128]
[1766757805750,0.01124353,88940.0,88932.0,0.01128]
[1766757805917,0.01124315,88943.0,88933.0,0.01124441]
[1766757806120,0.01124353,88940.0,88932.0,0.01128]
[1766757807054,0.01124366,88939.0,88932.0,0.01128]
[1766757807864,0.01124353,88940.0,88932.0,0.01128]
[1766757808291,0.01124366,88939.0,88932.0,0.01128]
[1766757808692,0.06746158,88940.0,88932.0,0.01128]
[1766757809094,0.0112434,88941.0,88932.0,0.02252454]
[1766757809393,0.01124315,88943.0,88934.0,0.01124429]
[1766757809618,0.01124302,88944.0,88934.0,0.01124429]
[1766757810023,0.01124328,88942.0,88933.0,0.01124441]
[1766757810156,0.0112429,88945.0,88934.0,0.06746515]
[1766757810357,0.01124227,88950.0,88939.0,0.01124366]
[1766757810560,0.01124201,88952.0,88932.0,0.01128]
[1766757810894,0.01124227,88950.0,88940.0,0.01124353]
[1766757811200,0.01124239,88949.0,88939.0,0.07874191]
[1766757811396,0.01124252,88948.0,88940.0,0.01124353]
[1766757811755,0.01124252,88948.0,88939.0,0.07874191]
[1766757812184,0.01124239,88949.0,88940.0,0.01124353]
[1766757812561,0.01124239,88949.0,88939.0,0.02252366]
[1766757812755,0.01124239,88949.0,88941.0,0.0112434]
[1766757812997,0.01124252,88948.0,88939.0,0.02252366]
[1766757813369,0.01124239,88949.0,88940.0,0.01124353]
[1766757814007,0.01124252,88948.0,88939.0,0.01128]
[1766757814207,0.01124239,88949.0,88939.0,0.01128]
[1766757814651,0.01124265,88947.0,88939.0,0.01128]
[1766757815005,0.06745256,88952.0,88939.0,0.02252366]
[1766757815231,0.01124214,88951.0,88939.0,0.02252366]
[1766757815488,0.46304256,88977.0,88939.0,0.02252366]
[1766757815489,4.448e-05,88959.0,88951.0,0.00055]
[1766757815714,4.448e-05,88959.0,88953.0,0.01124189]
[1766757815936,4.448e-05,88959.0,88955.0,0.01124163]
[1766757816158,4.448e-05,88959.0,88954.0,0.01124176]
[1766757816366,4.448e-05,88959.0,88956.0,0.01124151]
[1766757816570,0.05619957,88969.0,88956.0,0.01124151]
[1766757816571,0.01123923,88974.0,88961.0,0.01124088]
[1766757816701,0.01123974,88970.0,88961.0,0.01124088]
[1766757817042,0.01123961,88971.0,88962.0,0.01124075]
[1766757817389,0.01123987,88969.0,88960.0,0.011241]
[1766757817587,0.01123999,88968.0,88960.0,0.011241]
[1766757818052,0.01123987,88969.0,88961.0,0.01124088]
[1766757818199,0.01123961,88971.0,88960.0,0.06744566]
[1766757818400,0.01128,88972.0,88964.0,0.0674428]
[1766757818594,0.01123923,88974.0,88964.0,0.0674428]
[1766757818875,0.01123911,88975.0,88966.0,0.01124024]
[1766757819268,0.01123898,88976.0,88968.0,0.01123999]
[1766757819494,0.02476693,88977.0,88969.0,0.01123987]
[1766757819680,0.02476693,88977.0,88968.0,0.01123999]
[1766757819681,0.01123898,88976.0,88966.0,0.06744142]
[1766757819951,0.03600578,88977.0,88966.0,0.06744142]
[1766757820365,0.22474847,88989.0,88964.0,0.0112405]
[1766757820366,0.22474847,88989.0,88969.0,0.01123987]
[1766757820610,0.22473106,88996.0,88967.0,0.49033054]
[1766757820611,0.01123784,88985.0,88975.0,0.01123911]
[1766757820965,0.02251759,88987.0,88978.0,0.01123873]
[1766757821168,0.02251759,88987.0,88976.0,0.05619437]
[1766757821396,0.01123772,88986.0,88976.0,0.01123898]
[1766757821966,0.01123772,88986.0,88977.0,0.01123885]
[1766757822229,0.01123784,88985.0,88976.0,0.01123898]
[1766757822389,0.01123772,88986.0,88978.0,0.01123873]
[1766757822591,0.02251759,88987.0,88978.0,0.01123873]
[1766757823242,0.01128,88987.0,88979.0,0.0112386]
[1766757823443,0.02251759,88987.0,88979.0,0.0112386]
[1766757823624,0.02251759,88987.0,88977.0,0.01123885]
[1766757823832,0.02251759,88987.0,88978.0,0.01123873]
[1766757824033,0.01123772,88986.0,88978.0,0.01123873]
[1766757824237,0.02251759,88987.0,88978.0,0.01123873]
[1766757824444,0.01134535,88988.0,88979.0,0.0112386]
[1766757824840,0.00010788,88988.0,88980.0,0.01123848]
[1766757825023,0.00010788,88988.0,88982.0,0.01123822]
[1766757825860,0.00010788,88988.0,88981.0,0.01123835]
[1766757826039,0.00010788,88988.0,88985.0,0.01123784]
[1766757826245,0.01123595,89000.0,88985.0,0.01123784]
[1766757826246,0.01123557,89003.0,88992.0,0.01123696]
[1766757826477,0.00035953,89003.0,88994.0,0.01123671]
[1766757826672,0.00035953,89003.0,88995.0,0.01123658]
[1766757827075,0.00035953,89003.0,88993.0,0.01128]
[1766757827273,0.000106,88995.0,88993.0,0.01128]
[1766757827473,0.01123595,89000.0,88993.0,0.01128]
[1766757827710,0.01123582,89001.0,88993.0,0.01128]
[1766757827909,0.01123608,88999.0,88993.0,0.01128]
[1766757828958,0.01123595,89000.0,88993.0,0.01128]
[1766757829195,0.01123608,88999.0,88993.0,0.01128]
[1766757829375,0.0112362,88998.0,88993.0,0.011174]
[1766757830987,0.01123608,88999.0,88993.0,0.011174]
[1766757831182,0.0112362,88998.0,88993.0,0.011174]
[1766757831382,0.01123608,88999.0,88993.0,0.011174]
[1766757831588,0.01123595,89000.0,88993.0,0.011174]
[1766757832090,0.01123608,88999.0,88993.0,0.011174]
[1766757832507,0.0112362,88998.0,88993.0,0.011174]
[1766757832925,0.01123633,88997.0,88993.0,0.011174]
[1766757834948,0.01123608,88999.0,88993.0,0.011174]
[1766757835163,0.01123595,89000.0,88993.0,0.011174]
[1766757835552,0.01123608,88999.0,88993.0,0.011174]
[1766757836241,0.01123595,89000.0,88993.0,0.011174]
[1766757836639,0.01123608,88999.0,88993.0,0.011174]
[1766757836870,0.01123595,89000.0,88993.0,0.011174]
[1766757837178,0.01123608,88999.0,88993.0,0.011174]
[1766757837384,0.01123595,89000.0,88993.0,0.011174]
[1766757837765,0.01123608,88999.0,88993.0,0.011174]
[1766757837961,0.01123582,89001.0,88993.0,0.02241083]
[1766757838181,0.01123582,89001.0,88993.0,0.011174]
[1766757838935,0.0112357,89002.0,88993.0,0.02241083]
[1766757839110,0.01123582,89001.0,88993.0,0.02241083]
[1766757839723,0.0112357,89002.0,88993.0,0.07859453]
[1766757840227,0.0112357,89002.0,88994.0,0.01123671]
[1766757840425,0.0112357,89002.0,88993.0,0.07859453]
[1766757841031,0.01123582,89001.0,88993.0,0.011174]
[1766757841237,0.01123633,88997.0,88993.0,0.011174]
[1766757841655,0.01123646,88996.0,88993.0,0.010624]
[1766757842056,0.01123633,88997.0,88993.0,0.010624]
[1766757842263,0.01123633,88997.0,88989.0,0.01124]
[1766757842264,0.01123658,88995.0,88989.0,0.01124]
[1766757842458,0.01123683,88993.0,88989.0,0.01124]
[1766757842958,0.05489341,88995.0,88989.0,0.01124]
[1766757843525,0.01123658,88995.0,88989.0,0.01124]
[1766757844044,0.05618147,88998.0,88989.0,0.01124]
[1766757844242,0.01123633,88997.0,88989.0,0.01124]
[1766757844445,0.0112362,88998.0,88990.0,0.01123721]
[1766757844764,0.06777323,89003.0,88991.0,0.01123709]
[1766757844964,0.00035953,89003.0,88998.0,0.000549]
[1766757845127,0.00035953,89003.0,88998.0,0.0117852]
[1766757845340,0.00035953,89003.0,88997.0,0.06741752]
[1766757845542,5.3e-07,89003.0,89000.0,0.01123595]
[1766757845742,5.3e-07,89003.0,88999.0,0.01123608]
[1766757846545,0.07864939,89009.0,88999.0,0.01123608]
[1766757846546,0.02472693,89009.0,89000.0,0.06741572]
[1766757846735,0.02472693,89009.0,89002.0,0.0112357]
[1766757846932,0.01124,89009.0,89001.0,0.01123582]
[1766757847153,0.01124,89009.0,89002.0,0.0112357]
[1766757847572,0.01124,89009.0,89003.0,0.01123557]
[1766757847779,0.01124,89009.0,89004.0,0.01123545]
[1766757847979,0.01123393,89016.0,89009.0,0.00019]
[1766757848153,0.00010779,89016.0,89008.0,0.01123494]
[1766757848490,0.00010779,89016.0,89009.0,0.01123481]
[1766757848898,0.00010779,89016.0,89012.0,0.05617175]
[1766757849093,0.01124,89022.0,89012.0,0.05617175]
[1766757849094,0.01348693,89024.0,89017.0,0.0112338]
[1766757849239,0.01348693,89024.0,89015.0,0.01123406]
[1766757849240,0.000317,89021.0,89015.0,0.01123406]
[1766757849458,0.000317,89021.0,89018.0,0.01123368]
[1766757849658,0.01123254,89027.0,89015.0,0.06740398]
[1766757849858,0.01123279,89025.0,89017.0,0.0112338]
[1766757850053,0.01123267,89026.0,89017.0,0.0112338]
[1766757850306,0.01123279,89025.0,89015.0,0.01123406]
[1766757850508,0.01123292,89024.0,89015.0,0.01123406]
[1766757850808,0.01123279,89025.0,89016.0,0.01123393]
[1766757850968,0.01123292,89024.0,89016.0,0.01123393]
[1766757851393,0.06739572,89027.0,89015.0,0.01123406]
[1766757851592,0.06739572,89027.0,89017.0,0.0112338]
[1766757851790,0.01123292,89024.0,89016.0,0.01123393]
[1766757852171,0.01123317,89022.0,89013.0,0.01123431]
[1766757852467,0.01123317,89022.0,89012.0,0.06741186]
[1766757852468,0.01123343,89020.0,89012.0,0.01124]
[1766757852673,0.01123368,89018.0,89012.0,0.01124]
[1766757854291,0.0561657,89023.0,89012.0,0.01124]
[1766757854692,0.01123317,89022.0,89012.0,0.02247444]
[1766757854864,0.01123343,89020.0,89012.0,0.02247444]
[1766757855064,0.01123343,89020.0,89012.0,0.01124]
[1766757855364,0.01123355,89019.0,89012.0,0.01124]
[1766757855813,0.01123343,89020.0,89012.0,0.02247444]
[1766757856010,0.01123355,89019.0,89012.0,0.01124]
[1766757856211,0.01123343,89020.0,89012.0,0.02247444]
[1766757856542,0.01123368,89018.0,89012.0,0.01124]
[1766757856719,0.0112333,89021.0,89012.0,0.01124]
[1766757856924,0.06740026,89021.0,89012.0,0.01124]
[1766757857126,0.01123343,89020.0,89012.0,0.01124]
[1766757857535,0.01123355,89019.0,89012.0,0.01124]
[1766757857738,0.01123317,89022.0,89012.0,0.01124]
[1766757857977,0.01123317,89022.0,89013.0,0.01123431]
[1766757858835,0.0112333,89021.0,89013.0,0.01123431]
[1766757859047,0.08088462,89024.0,89015.0,0.01123406]
[1766757859048,0.01348693,89024.0,89015.0,0.01123406]
[1766757859230,0.01348693,89024.0,89017.0,0.0112338]
[1766757860055,0.01348693,89024.0,89019.0,0.01123355]
[1766757860649,0.01348693,89024.0,89018.0,0.01123368]
[1766757861248,0.01348693,89024.0,89019.0,0.01123355]
[1766757861449,0.01348693,89024.0,89020.0,0.01123343]
[1766757861659,0.01163216,89030.0,89024.0,0.00055]
[1766757861853,0.0004,89030.0,89024.0,0.00055]
[1766757862038,0.0004,89030.0,89022.0,0.01123317]
[1766757862241,0.0004,89030.0,89021.0,0.0112333]
[1766757862242,0.01123229,89029.0,89021.0,0.0112333]
[1766757862444,0.01163216,89030.0,89027.0,0.01123254]
[1766757862445,0.0004,89030.0,89027.0,0.01123254]
[1766757862801,0.02511808,89038.0,89029.0,0.01123229]
[1766757862940,0.01123128,89037.0,89028.0,0.43366316]
[1766757863141,0.01123141,89036.0,89028.0,0.44489558]
[1766757863345,0.01123141,89036.0,89028.0,0.01123242]
[1766757863546,0.01123153,89035.0,89026.0,0.51229858]
[1766757863745,0.01123141,89036.0,89026.0,0.45613583]
[1766757864001,0.01123153,89035.0,89026.0,0.45613583]
[1766757864194,0.01123153,89035.0,89027.0,0.01123254]
[1766757864410,0.01388693,89038.0,89028.0,0.0561621]
[1766757864610,0.01388693,89038.0,89029.0,0.01123229]
[1766757864611,0.0004,89038.0,89029.0,0.01123229]
[1766757864814,0.01163115,89038.0,89030.0,0.01123216]
[1766757865017,0.0004,89038.0,89030.0,0.01123216]
[1766757865179,0.0004,89038.0,89031.0,0.01123204]
[1766757865384,0.01163115,89038.0,89030.0,0.01123216]
[1766757865598,0.0004,89038.0,89031.0,0.01123204]
[1766757865805,0.01163115,89038.0,89030.0,0.01123216]
[1766757865980,0.01163115,89038.0,89035.0,0.01123153]
[1766757865981,0.0004,89038.0,89035.0,0.01123153]
[1766757866165,0.0004,89041.0,89035.0,0.01123153]
[1766757866166,0.0004,89041.0,89036.0,0.01123141]
[1766757866369,0.0004,89041.0,89038.0,0.01123115]
[1766757866566,0.0004,89041.0,89036.0,0.01123141]
[1766757866764,0.01123115,89038.0,89035.0,0.01124]
[1766757866967,0.01123103,89039.0,89035.0,0.010691]
[1766757867202,0.0004,89041.0,89035.0,0.010691]
[1766757867203,0.01163078,89041.0,89035.0,0.010691]
[1766757868175,0.0004,89041.0,89035.0,0.010691]
[1766757870234,0.0004,89041.0,89035.0,0.02192253]
[1766757870661,0.0004,89041.0,89035.0,0.010691]
[1766757871406,0.0004,89041.0,89035.0,0.02192253]
[1766757871821,0.0004,89041.0,89035.0,0.010691]
[1766757872017,0.01163078,89041.0,89035.0,0.010691]
[1766757872253,0.0112309,89040.0,89035.0,0.010691]
[1766757872410,0.01123115,89038.0,89035.0,0.010691]
[1766757873015,0.01123103,89039.0,89035.0,0.010691]
[1766757873338,0.0112309,89040.0,89035.0,0.010691]
[1766757873505,0.01123115,89038.0,89035.0,0.010691]
[1766757873700,0.01123103,89039.0,89035.0,0.010691]
[1766757874360,0.0112309,89040.0,89035.0,0.010691]
[1766757874597,0.01163078,89041.0,89035.0,0.010691]
[1766757875946,0.0004,89041.0,89035.0,0.010691]
[1766757877202,0.0112309,89040.0,89035.0,0.010691]
[1766757877423,0.06778506,89041.0,89035.0,0.010691]
[1766757878036,0.01163078,89041.0,89035.0,0.010691]
[1766757878978,0.0112309,89040.0,89035.0,0.010691]
[1766757881102,0.01123103,89039.0,89035.0,0.010691]
[1766757881325,0.01123115,89038.0,89035.0,0.010691]
[1766757882315,0.01123103,89039.0,89035.0,0.010691]
[1766757882701,0.0673875,89038.0,89035.0,0.010691]
[1766757882891,0.0112309,89040.0,89035.0,0.010691]
[1766757883322,0.01123115,89038.0,89035.0,0.010691]
[1766757884131,0.01123103,89039.0,89035.0,0.010691]
[1766757884335,0.01123115,89038.0,89035.0,0.010691]
[1766757884535,0.0004,89041.0,89035.0,0.010691]
[1766757884762,0.0112309,89040.0,89035.0,0.010691]
[1766757885714,0.01123103,89039.0,89035.0,0.010691]
[1766757885937,0.0112309,89040.0,89035.0,0.010691]
[1766757886543,0.01123103,89039.0,89035.0,0.010691]
[1766757888134,0.0112309,89040.0,89035.0,0.010691]
[1766757888529,0.01123115,89038.0,89035.0,0.010691]
[1766757888728,0.0112309,89040.0,89035.0,0.010691]
[1766757889257,0.01123103,89039.0,89035.0,0.010691]
[1766757889457,0.0004,89041.0,89035.0,0.010691]
[1766757889656,0.0112304,89044.0,89035.0,0.02192253]
[1766757889861,0.01123052,89043.0,89035.0,0.010691]
[1766757890379,0.01123065,89042.0,89035.0,0.02192253]
[1766757890595,0.01123065,89042.0,89035.0,0.010691]
[1766757891209,0.01123078,89041.0,89035.0,0.010691]
[1766757891573,0.01123065,89042.0,89035.0,0.010691]
[1766757891992,0.01123052,89043.0,89035.0,0.010691]
[1766757892194,0.01123065,89042.0,89035.0,0.010691]
[1766757892756,0.01123078,89041.0,89035.0,0.010691]
[1766757892975,0.0112309,89040.0,89035.0,0.010691]
[1766757893187,0.06749054,89044.0,89035.0,0.010691]
[1766757893427,0.01123052,89043.0,89035.0,0.010691]
[1766757893714,0.01123052,89043.0,89035.0,0.02192253]
[1766757893919,0.01133817,89044.0,89035.0,0.02192253]
[1766757894124,0.01123052,89043.0,89035.0,0.02192253]
[1766757894793,0.01123052,89043.0,89035.0,0.010691]
[1766757894794,0.01123065,89042.0,89035.0,0.010691]
[1766757894993,0.0112309,89040.0,89035.0,0.010691]
[1766757895152,0.01123103,89039.0,89035.0,0.010691]
[1766757895353,0.01123115,89038.0,89035.0,0.010691]
[1766757896419,0.05615642,89037.0,89035.0,0.010691]
[1766757896619,0.01123115,89038.0,89035.0,0.010691]
[1766757896826,0.01123115,89038.0,89036.0,0.01124]
[1766757897021,0.01123103,89039.0,89036.0,0.01084]
[1766757898808,0.01123229,89029.0,89020.0,0.01123343]
[1766757898930,0.01123166,89034.0,89029.0,0.000549]
[1766757899279,0.36957,89036.0,89030.0,0.01124]
[1766757899484,0.38080141,89036.0,89030.0,0.01124]
[1766757899662,0.36957,89036.0,89030.0,0.01124]
[1766757900064,0.38080141,89036.0,89030.0,0.01124]
[1766757900380,0.36957,89036.0,89030.0,0.01124]
[1766757900528,0.01123153,89035.0,89030.0,0.01124]
[1766757900731,0.01123166,89034.0,89030.0,0.01089231]
[1766757900932,0.01123166,89034.0,89030.0,0.01034231]
[1766757901232,0.01123166,89034.0,89022.0,0.01123317]
[1766757901233,0.01123292,89024.0,89021.0,0.01124]
[1766757901425,0.01123292,89024.0,89020.0,0.26669]
[1766757901426,0.01123305,89023.0,89020.0,0.26669]
[1766757901617,0.01123279,89025.0,89020.0,0.26669]
[1766757901757,0.01123292,89024.0,89020.0,0.26669]
[1766757901965,0.01123305,89023.0,89020.0,0.26669]
[1766757902165,0.05616651,89022.0,89020.0,0.26669]
[1766757902362,0.06739875,89023.0,89020.0,0.26669]
[1766757902762,0.05616641,89022.0,89020.0,0.26669]
[1766757902969,0.05616641,89022.0,88990.0,0.43330833]
[1766757902970,0.01123444,89012.0,89001.0,0.00088]
[1766757903169,0.0112338,89017.0,89006.0,0.00088]
[1766757903170,0.06740492,89015.0,89006.0,0.00088]
[1766757903373,0.01123368,89018.0,89016.0,0.00107]
[1766757903582,0.01123355,89019.0,89016.0,0.00107]
[1766757903778,0.01123355,89019.0,89006.0,0.06741099]
[1766757903779,0.01123444,89012.0,89000.0,0.01123595]
[1766757903986,0.0112338,89017.0,89005.0,0.02247532]
[1766757904202,0.01123418,89014.0,89005.0,0.01134779]
[1766757904416,0.0112338,89017.0,89005.0,0.02258311]
[1766757904417,0.01123406,89015.0,89005.0,0.02258311]
[1766757904583,0.01123406,89015.0,89006.0,0.01123519]
[1766757904774,0.01123406,89015.0,89005.0,0.02258311]
[1766757905216,0.01123355,89019.0,89007.0,0.05617535]
[1766757905470,0.01123355,89019.0,89015.0,0.000549]
[1766757905667,0.0112338,89017.0,89015.0,0.000549]
[1766757906001,0.01123393,89016.0,89006.0,0.01123519]
[1766757906184,0.01123406,89015.0,89005.0,0.01134779]
[1766757906434,0.01123418,89014.0,89005.0,0.01134779]
[1766757906866,0.01123431,89013.0,89005.0,0.01134779]
[1766757907146,0.01123444,89012.0,89005.0,0.01134779]
[1766757907292,0.01123431,89013.0,89005.0,0.01134779]
[1766757907691,0.01123456,89011.0,89005.0,0.01134779]
[1766757907934,0.01123444,89012.0,89005.0,0.01134779]
[1766757907935,0.01123494,89008.0,89005.0,0.00010779]
[1766757908143,0.05617598,89006.0,89005.0,0.00010779]
[1766757908350,0.01348693,89007.0,88994.0,0.01124]
[1766757908351,0.01123595,89000.0,88994.0,0.01124]
[1766757908547,0.01123608,88999.0,88994.0,0.01159953]
[1766757908748,0.01123595,89000.0,88994.0,0.01159953]
[1766757908749,0.06741355,89003.0,88994.0,0.00035953]
[1766757909147,0.01123557,89003.0,88994.0,0.00035953]
[1766757909358,0.0112357,89002.0,88994.0,0.00035953]
[1766757909795,0.056177,89005.0,88994.0,0.01159624]
[1766757910135,0.01124,89008.0,88999.0,0.01123608]
[1766757910348,0.01124,89008.0,89005.0,0.000549]
[1766757910679,0.01124,89008.0,88999.0,0.01123608]
[1766757911459,0.01124,89008.0,88998.0,0.0112362]
[1766757911664,0.01123507,89007.0,88996.0,0.05618211]
[1766757911847,0.01124,89008.0,88998.0,0.0112362]
[1766757912079,0.01123507,89007.0,88998.0,0.0112362]
[1766757912283,0.02247494,89008.0,88998.0,0.0112362]
[1766757912497,0.07864977,89008.0,88995.0,0.01123658]
[1766757912700,0.01123519,89006.0,88996.0,0.01123646]
[1766757912904,0.01123519,89006.0,88997.0,0.01123633]
[1766757913095,0.01123507,89007.0,88998.0,0.0112362]
[1766757913526,0.02247494,89008.0,88998.0,0.0112362]
[1766757914146,0.01124,89008.0,88999.0,0.01123608]
[1766757915641,0.02247494,89008.0,88999.0,0.01123608]
[1766757915847,0.01124,89008.0,89000.0,0.01123595]
[1766757916235,0.01124,89008.0,88999.0,0.01123608]
[1766757916911,0.02247494,89008.0,88998.0,0.0112362]
[1766757917533,0.01123507,89007.0,88997.0,0.01123633]
[1766757917750,0.01123519,89006.0,88996.0,0.06741827]
[1766757917969,0.01123519,89006.0,88997.0,0.01123633]
[1766757918172,0.01123519,89006.0,88996.0,0.06741827]
[1766757918312,0.01123532,89005.0,88996.0,0.01123646]
[1766757918514,0.01123519,89006.0,88996.0,0.01123646]
[1766757918936,0.01123519,89006.0,88994.0,0.0565426]
[1766757918937,0.01123595,89000.0,88994.0,0.00035953]
[1766757919133,0.0112362,88998.0,88994.0,0.00035953]
[1766757919331,0.01123595,89000.0,88998.0,0.001099]
[1766757919568,0.01123582,89001.0,88998.0,0.001099]
[1766757920031,0.0112357,89002.0,88994.0,0.00035953]
[1766757920268,0.06741405,89003.0,88994.0,0.00035953]
[1766757920269,0.01123557,89003.0,88994.0,0.00035953]
[1766757920470,0.0112357,89002.0,88994.0,0.00035953]
[1766757920672,0.01123582,89001.0,88994.0,0.00035953]
[1766757921048,0.0112357,89002.0,88994.0,0.00035953]
[1766757921416,0.01123582,89001.0,88994.0,0.00035953]
[1766757922230,0.01123595,89000.0,88994.0,0.00035953]
[1766757922731,0.01123608,88999.0,88994.0,0.00035953]
[1766757922916,0.0561823,88996.0,88994.0,0.00035953]
[1766757923431,0.0561823,88996.0,88981.0,0.01123835]
[1766757923432,0.01123721,88990.0,88980.0,0.01123848]
[1766757923629,0.01123633,88997.0,88969.0,0.04492]
[1766757923630,0.01123772,88986.0,88969.0,0.01123987]
[1766757923830,0.06743063,88981.0,88969.0,0.00010788]
[1766757924029,0.01123822,88982.0,88971.0,0.01123961]
[1766757924233,0.0112381,88983.0,88971.0,0.01123961]
[1766757924580,0.01123784,88985.0,88976.0,0.01123898]
[1766757924983,0.01123784,88985.0,88975.0,0.01123911]
[1766757925282,0.02472427,88989.0,88979.0,0.0112386]
[1766757925477,0.01123747,88988.0,88978.0,0.01123873]
[1766757926077,0.01123747,88988.0,88976.0,0.06743332]
[1766757926078,0.01123747,88988.0,88976.0,0.01123898]
[1766757926281,0.01123797,88984.0,88973.0,0.01123936]
[1766757926482,0.01123822,88982.0,88972.0,0.01123949]
[1766757926645,0.01123822,88982.0,88973.0,0.01123936]
[1766757927009,0.01123822,88982.0,88969.0,0.05630706]
[1766757927010,0.05619166,88982.0,88969.0,0.01134775]
[1766757927196,0.01123885,88977.0,88969.0,0.01134788]
[1766757927410,0.01123822,88982.0,88977.0,0.000549]
[1766757927648,0.01123835,88981.0,88971.0,0.01123961]
[1766757927841,0.01123835,88981.0,88972.0,0.01123949]
[1766757928038,0.01123822,88982.0,88971.0,0.01123961]
[1766757928198,0.02247772,88986.0,88976.0,0.01123898]
[1766757928400,0.01124,88986.0,88982.0,0.000549]
[1766757928582,0.01123784,88985.0,88982.0,0.000549]
[1766757928786,0.01123784,88985.0,88972.0,0.01123949]
[1766757928787,0.02247772,88986.0,88975.0,0.01123911]
[1766757929031,0.01124,88986.0,88976.0,0.05619452]
[1766757929192,0.01124,88986.0,88981.0,0.05619177]
[1766757929564,0.05618287,88996.0,88980.0,0.06743058]